fUST/lending_fUST_20260622
["ID","MTS","AMOUNT","RATE_DAILY","PERIOD"]
[426042268,1782131448000,-226.0,0.00023877,120]
[426042263,1782131448000,-1389.95,0.0002386,7]
[426042261,1782131448000,-430.19,0.00023852,7]
[426042276,1782131448000,-3000.0,0.00023877,30]
[426042311,1782131448000,-430.19,0.00023952,7]
[426042281,1782131448000,-242.0,0.00023877,120]
[426042277,1782131448000,-156.0,0.00023877,120]
[426042295,1782131448000,-1681.16,0.00023895,7]
[426042285,1782131448000,-570.0,0.00023877,120]
[426042287,1782131448000,-165.0,0.00023877,120]
[426042299,1782131448000,-430.19,0.00023902,7]
[426042283,1782131448000,-259.0,0.00023877,120]
[426042289,1782131448000,-519.9,0.00023879,7]
[426042291,1782131448000,-518.0,0.00023879,120]
[426042301,1782131448000,-1390.13,0.0002391,7]
[426042297,1782131448000,-300.0,0.000239,2]
[426042305,1782131448000,-1720.95,0.00023921,7]
[426042309,1782131448000,-1681.25,0.00023945,7]
[426042307,1782131448000,-519.9,0.00023929,7]
[426042279,1782131448000,-177.0,0.00023877,120]
[426042370,1782131448000,-353.26378304,0.00024043,4]
[426042337,1782131448000,-2000.0,0.00024,2]
[426042376,1782131448000,-519.9,0.00024079,7]
[426042431,1782131448000,-430.19,0.00024352,7]
[426042447,1782131448000,-226.0,0.00024438,30]
[426042433,1782131448000,-519.9,0.00024379,7]
[426042437,1782131448000,-893.0,0.00024401,120]
[426042467,1782131448000,-430.19,0.00024452,7]
[426042472,1782131448000,-430.19,0.00024502,7]
[426042458,1782131448000,-165.0,0.00024439,30]
[426042469,1782131448000,-519.9,0.00024479,7]
[426042470,1782131448000,-200.0,0.000245,120]
[426042456,1782131448000,-570.0,0.00024439,30]
[426042448,1782131448000,-163.99851478,0.00024438,30]
[426042450,1782131448000,-156.0,0.00024439,30]
[426042462,1782131448000,-155.0,0.0002444,30]
[426042445,1782131448000,-790.0,0.00024433,120]
[426042460,1782131448000,-518.0,0.0002444,30]
[426042452,1782131448000,-242.0,0.00024439,30]
[426042464,1782131448000,-620.5440376,0.00024452,30]
[426042494,1782131448000,-202.0,0.000246,21]
[426042476,1782131448000,-303.02404667,0.00024548,30]
[426042481,1782131448000,-1595.94901939,0.0002457,120]
[426042483,1782131448000,-330.0,0.00024574,2]
[426042487,1782131448000,-1000.0,0.00024577,2]
[426042478,1782131448000,-430.19,0.00024552,7]
[426042480,1782131448000,-242.0,0.00024569,2]
[426042485,1782131448000,-270.0,0.00024574,2]
[426042489,1782131448000,-519.9,0.00024579,7]
[426042492,1782131448000,-504.7344,0.000246,2]
[426042491,1782131448000,-362.16,0.00024579,7]
[426042454,1782131448000,-259.0,0.00024439,30]
[426042429,1782131448000,-519.9,0.00024329,7]
[426042380,1782131448000,-207.49,0.000241,2]
[426042439,1782131448000,-430.19,0.00024402,7]
[426042397,1782131448000,-214.0,0.0002411,30]
[426042384,1782131448000,-430.19,0.00024102,7]
[426042378,1782131448000,-303.02404667,0.00024082,30]
[426042382,1782131448000,-256.0,0.000241,6]
[426042386,1782131448000,-586.0,0.0002411,7]
[426042390,1782131448000,-349.5,0.0002411,7]
[426042399,1782131448000,-1924.56,0.0002411,2]
[426042443,1782131448000,-519.9,0.00024429,7]
[426042395,1782131448000,-152.81,0.0002411,2]
[426042394,1782131448000,-534.86,0.0002411,7]
[426042392,1782131448000,-840.5,0.0002411,2]
[426042401,1782131448000,-519.9,0.00024129,7]
[426042403,1782131448000,-430.19,0.00024152,7]
[426042405,1782131448000,-586.0,0.00024164,7]
[426042388,1782131448000,-549.22,0.0002411,2]
[426042415,1782131448000,-519.9,0.00024229,7]
[426042411,1782131448000,-500.0,0.000242,120]
[426042440,1782131448000,-303.02404667,0.00024411,30]
[426042435,1782131448000,-1924.56,0.00024384,2]
[426042426,1782131448000,-1000.0,0.00024303,2]
[426042422,1782131448000,-303.02404667,0.00024301,30]
[426042420,1782131448000,-519.9,0.00024279,7]
[426042424,1782131448000,-430.19,0.00024302,7]
[426042416,1782131448000,-430.19,0.00024252,7]
[426042409,1782131448000,-303.02404667,0.00024192,30]
[426042413,1782131448000,-430.19,0.00024202,7]
[426042474,1782131448000,-519.9,0.00024529,7]
[426042407,1782131448000,-519.9,0.00024179,7]
[426042418,1782131448000,-200.0,0.00024255,120]
[426042574,1782131449000,-151.5,0.00024658,30]
[426042591,1782131449000,-799.0,0.00024658,2]
[426042572,1782131449000,-151.5,0.00024658,30]
[426042580,1782131449000,-151.5,0.00024658,30]
[426042561,1782131449000,-151.0,0.00024658,2]
[426042555,1782131449000,-380.0,0.00024658,2]
[426042568,1782131449000,-200.0,0.00024658,2]
[426042565,1782131449000,-151.0,0.00024658,2]
[426042557,1782131449000,-151.0,0.00024658,2]
[426042551,1782131449000,-600.29057573,0.00024658,2]
[426042553,1782131449000,-303.02404667,0.00024658,30]
[426042570,1782131449000,-305.87,0.00024658,7]
[426042586,1782131449000,-799.0,0.00024658,2]
[426042615,1782131449000,-799.0,0.00024658,2]
[426042587,1782131449000,-799.0,0.00024658,2]
[426042584,1782131449000,-799.0,0.00024658,2]
[426042589,1782131449000,-799.0,0.00024658,2]
[426042595,1782131449000,-799.0,0.00024658,2]
[426042601,1782131449000,-799.0,0.00024658,2]
[426042599,1782131449000,-799.0,0.00024658,2]
[426042597,1782131449000,-799.0,0.00024658,2]
[426042602,1782131449000,-799.0,0.00024658,2]
[426042611,1782131449000,-799.0,0.00024658,2]
[426042604,1782131449000,-799.0,0.00024658,2]
[426042593,1782131449000,-799.0,0.00024658,2]
[426042613,1782131449000,-799.0,0.00024658,2]
[426042606,1782131449000,-799.0,0.00024658,2]
[426042549,1782131449000,-450.2179318,0.00024658,2]
[426042582,1782131449000,-281.13639481,0.00024658,30]
[426042566,1782131449000,-273.566226,0.00024658,2]
[426042531,1782131449000,-1704.02,0.00024658,7]
[426042563,1782131449000,-151.0,0.00024658,2]
[426042608,1782131449000,-799.0,0.00024658,2]
[426042508,1782131449000,-128391.92876419,0.0002465,2]
[426042500,1782131449000,-362.0,0.000246,120]
[426042502,1782131449000,-430.19,0.00024602,7]
[426042499,1782131449000,-258.0,0.000246,120]
[426042510,1782131449000,-30442.24282007,0.0002465,2]
[426042496,1782131449000,-151.0,0.000246,120]
[426042504,1782131449000,-519.9,0.00024629,7]
[426042506,1782131449000,-520.35990099,0.0002465,2]
[426042512,1782131449000,-9814.85945775,0.0002465,2]
[426042514,1782131449000,-430.19,0.00024652,7]
[426042518,1782131449000,-168.2,0.00024658,2]
[426042520,1782131449000,-168.2,0.00024658,2]
[426042547,1782131449000,-300.14528787,0.00024658,2]
[426042516,1782131449000,-168.2,0.00024658,2]
[426042534,1782131449000,-183.43,0.00024658,2]
[426042536,1782131449000,-423.0,0.00024658,2]
[426042544,1782131449000,-1924.66,0.00024658,2]
[426042538,1782131449000,-269.18,0.00024658,7]
[426042525,1782131449000,-772.74,0.00024658,2]
[426042522,1782131449000,-168.2,0.00024658,2]
[426042540,1782131449000,-250.19567021,0.00024658,2]
[426042529,1782131449000,-2677.75,0.00024658,2]
[426042533,1782131449000,-486.86,0.00024658,2]
[426042523,1782131449000,-168.2,0.00024658,2]
[426042542,1782131449000,-500.39134043,0.00024658,2]
[426042545,1782131449000,-150.07264393,0.00024658,2]
[426042559,1782131449000,-151.0,0.00024658,2]
[426042527,1782131449000,-491.74,0.00024658,7]
[426042609,1782131449000,-799.0,0.00024658,2]
[426042620,1782131449000,-799.0,0.00024658,2]
[426042624,1782131449000,-799.0,0.00024658,2]
[426042669,1782131449000,-156.0,0.00024877,120]
[426042670,1782131449000,-177.0,0.00024877,120]
[426042683,1782131449000,-155.0,0.0002488,120]
[426042687,1782131449000,-1887.3016998,0.000249,120]
[426042685,1782131449000,-300.0,0.000249,2]
[426042693,1782131449000,-223.0,0.00024903,120]
[426042697,1782131449000,-430.19,0.00024952,7]
[426042689,1782131449000,-155.0,0.000249,120]
[426042695,1782131449000,-519.9,0.00024929,7]
[426042708,1782131449000,-10364.0,0.00025,2]
[426042691,1782131449000,-430.19,0.00024902,7]
[426042710,1782131449000,-500.0,0.00025,2]
[426042701,1782131449000,-1126.079269,0.0002498,5]
[426042665,1782131449000,-150.0,0.00024877,120]
[426042706,1782131449000,-2707.69776313,0.00025,2]
[426042705,1782131449000,-505.03873591,0.00025,14]
[426042703,1782131449000,-160.0,0.00024992,3]
[426042699,1782131449000,-519.9,0.00024979,7]
[426042719,1782131449000,-1043.17024769,0.00025,10]
[426042714,1782131449000,-160.0,0.00025,7]
[426042721,1782131449000,-177.66008364,0.00025,30]
[426042716,1782131449000,-38000.0,0.00025,15]
[426042727,1782131449000,-450.68898607,0.00025,120]
[426042628,1782131449000,-519.9,0.00024679,7]
[426042717,1782131449000,-2394.0,0.00025,14]
[426042723,1782131449000,-300.0,0.00025,30]
[426042724,1782131449000,-539.43732401,0.00025,120]
[426042728,1782131449000,-375.70276514,0.00025,120]
[426042712,1782131449000,-5000.0,0.00025,10]
[426042676,1782131449000,-570.0,0.00024877,120]
[426042730,1782131449000,-190.0,0.00025,30]
[426042672,1782131449000,-242.0,0.00024877,120]
[426042626,1782131449000,-812.08473279,0.00024658,2]
[426042622,1782131449000,-799.0,0.00024658,2]
[426042633,1782131449000,-259.74,0.000247,2]
[426042631,1782131449000,-272.65055836,0.000247,2]
[426042619,1782131449000,-799.0,0.00024658,2]
[426042635,1782131449000,-430.19,0.00024702,7]
[426042638,1782131449000,-627.50539833,0.00024729,7]
[426042630,1782131449000,-246.23,0.000247,2]
[426042637,1782131449000,-519.9,0.00024729,7]
[426042649,1782131449000,-519.9,0.00024829,7]
[426042642,1782131449000,-303.02404667,0.00024767,30]
[426042651,1782131449000,-1000.0,0.00024851,2]
[426042653,1782131449000,-430.19,0.00024852,7]
[426042617,1782131449000,-799.0,0.00024658,2]
[426042656,1782131449000,-226.0,0.00024877,120]
[426042667,1782131449000,-194.0,0.00024877,120]
[426042663,1782131449000,-303.02404667,0.00024877,30]
[426042655,1782131449000,-172.0,0.00024877,30]
[426042678,1782131449000,-165.0,0.00024877,120]
[426042679,1782131449000,-519.9,0.00024879,7]
[426042674,1782131449000,-259.0,0.00024877,120]
[426042658,1782131449000,-160.0,0.00024877,120]
[426042681,1782131449000,-518.0,0.00024879,120]
[426042660,1782131449000,-167.0,0.00024877,120]
[426042646,1782131449000,-200.0,0.00024783,120]
[426042662,1782131449000,-244.0,0.00024877,120]
[426042647,1782131449000,-430.19,0.00024802,7]
[426042640,1782131449000,-430.19,0.00024752,7]
[426042644,1782131449000,-519.9,0.00024779,7]
[426042810,1782131450000,-417.15472785,0.00025,30]
[426042797,1782131450000,-1900.0,0.00025,30]
[426042795,1782131450000,-1900.0,0.00025,30]
[426042802,1782131450000,-160.0,0.00025,30]
[426042791,1782131450000,-1900.0,0.00025,30]
[426042789,1782131450000,-1900.0,0.00025,30]
[426042782,1782131450000,-1900.0,0.00025,30]
[426042787,1782131450000,-1900.0,0.00025,30]
[426042808,1782131450000,-417.15472785,0.00025,120]
[426042793,1782131450000,-1900.0,0.00025,30]
[426042780,1782131450000,-1900.0,0.00025,30]
[426042814,1782131450000,-499.3,0.00025,30]
[426042800,1782131450000,-2937.0231665,0.00025,30]
[426042798,1782131450000,-1900.0,0.00025,30]
[426042812,1782131450000,-172.24548973,0.00025,2]
[426042806,1782131450000,-578.27880172,0.00025,2]
[426042816,1782131450000,-500.0,0.00025,30]
[426042817,1782131450000,-500.0,0.00025,30]
[426042823,1782131450000,-1000.0,0.00025,30]
[426042819,1782131450000,-1000.0,0.00025,30]
[426042829,1782131450000,-1000.0,0.00025,30]
[426042821,1782131450000,-1000.0,0.00025,30]
[426042776,1782131450000,-1900.0,0.00025,30]
[426042804,1782131450000,-1000.0,0.00025,5]
[426042785,1782131450000,-1900.0,0.00025,30]
[426042746,1782131450000,-430.5068825,0.00025,30]
[426042778,1782131450000,-1900.0,0.00025,30]
[426042825,1782131450000,-1000.0,0.00025,30]
[426042736,1782131450000,-307.8251285,0.00025,30]
[426042738,1782131450000,-500.0,0.00025,30]
[426042734,1782131450000,-293.8506844,0.00025,30]
[426042732,1782131450000,-534.6655204,0.00025,30]
[426042749,1782131450000,-1900.0,0.00025,30]
[426042757,1782131450000,-1900.0,0.00025,30]
[426042740,1782131450000,-500.0,0.00025,30]
[426042747,1782131450000,-200.0,0.00025,120]
[426042742,1782131450000,-500.0,0.00025,30]
[426042762,1782131450000,-1900.0,0.00025,30]
[426042783,1782131450000,-1900.0,0.00025,30]
[426042761,1782131450000,-1900.0,0.00025,30]
[426042755,1782131450000,-1900.0,0.00025,30]
[426042751,1782131450000,-1900.0,0.00025,30]
[426042753,1782131450000,-1900.0,0.00025,30]
[426042748,1782131450000,-1900.0,0.00025,30]
[426042759,1782131450000,-1900.0,0.00025,30]
[426042764,1782131450000,-1900.0,0.00025,30]
[426042766,1782131450000,-1900.0,0.00025,30]
[426042768,1782131450000,-1900.0,0.00025,30]
[426042770,1782131450000,-1900.0,0.00025,30]
[426042772,1782131450000,-1900.0,0.00025,30]
[426042774,1782131450000,-1900.0,0.00025,30]
[426042744,1782131450000,-500.0,0.00025,30]
[426042827,1782131450000,-1000.0,0.00025,30]
[426042830,1782131450000,-1000.0,0.00025,30]
[426042832,1782131450000,-1000.0,0.00025,30]
[426042882,1782131450000,-658.0,0.00025003,120]
[426042910,1782131450000,-592.0,0.00025373,7]
[426042889,1782131450000,-519.9,0.00025029,7]
[426042906,1782131450000,-160.0,0.00025306,3]
[426042891,1782131450000,-158.0,0.00025031,120]
[426042897,1782131450000,-1000.0,0.00025125,2]
[426042908,1782131450000,-586.0,0.00025373,7]
[426042912,1782131450000,-1000.0,0.00025399,2]
[426042895,1782131450000,-303.02404667,0.00025123,30]
[426042893,1782131450000,-430.19,0.00025052,7]
[426042904,1782131450000,-864.0,0.0002526,10]
[426042899,1782131450000,-171.0,0.00025151,15]
[426042901,1782131450000,-589.50360412,0.000252,5]
[426042914,1782131450000,-151.0,0.000254,120]
[426042929,1782131450000,-155.0,0.0002544,30]
[426042927,1782131450000,-518.0,0.0002544,30]
[426042925,1782131450000,-165.0,0.00025439,30]
[426042931,1782131450000,-1188725.03667023,0.00025444,2]
[426042915,1782131450000,-226.0,0.00025438,30]
[426042918,1782131450000,-156.0,0.00025439,30]
[426042920,1782131450000,-242.0,0.00025439,30]
[426042922,1782131450000,-259.0,0.00025439,30]
[426042923,1782131450000,-570.0,0.00025439,30]
[426042886,1782131450000,-395.0,0.00025016,120]
[426042869,1782131450000,-1000.0,0.00025,30]
[426042834,1782131450000,-1000.0,0.00025,30]
[426042865,1782131450000,-1000.0,0.00025,30]
[426042939,1782131450000,-23835.13312678,0.00025444,2]
[426042836,1782131450000,-1000.0,0.00025,30]
[426042840,1782131450000,-1000.0,0.00025,30]
[426042842,1782131450000,-1000.0,0.00025,30]
[426042860,1782131450000,-1000.0,0.00025,30]
[426042838,1782131450000,-1000.0,0.00025,30]
[426042846,1782131450000,-1000.0,0.00025,30]
[426042844,1782131450000,-1000.0,0.00025,30]
[426042852,1782131450000,-1000.0,0.00025,30]
[426042858,1782131450000,-1000.0,0.00025,30]
[426042861,1782131450000,-1000.0,0.00025,30]
[426042848,1782131450000,-1000.0,0.00025,30]
[426042850,1782131450000,-1000.0,0.00025,30]
[426042867,1782131450000,-1000.0,0.00025,30]
[426042878,1782131450000,-750.36321967,0.00025001,2]
[426042871,1782131450000,-1000.0,0.00025,30]
[426042856,1782131450000,-1000.0,0.00025,30]
[426042880,1782131450000,-430.19,0.00025002,7]
[426042876,1782131450000,-1032.0,0.00025,2]
[426042875,1782131450000,-242.90688304,0.00025,2]
[426042873,1782131450000,-1344.5,0.00025,30]
[426042863,1782131450000,-1000.0,0.00025,30]
[426042854,1782131450000,-1000.0,0.00025,30]
[426042884,1782131450000,-303.02404667,0.00025014,30]
[426042888,1782131450000,-237.0,0.00025025,120]
[426043175,1782131453000,244.0,7.17e-05,2]
[426043326,1782131454000,244.0,8.17e-05,2]
[426043482,1782131455000,244.0,9.17e-05,2]
[426045141,1782131470000,-244.0,0.0001017,2]
[426045142,1782131470000,222.4640284,0.00011,13]
[426059744,1782132052000,463.1275422,0.00022855,30]
[426059851,1782132439000,194.62317717,0.00011,13]
[426059867,1782132631000,-5933.79664879,0.00019178,2]
[426059866,1782132631000,-9614.50199315,0.00019112,2]
[426059865,1782132631000,-795.47480885,0.00019112,2]
[426059864,1782132631000,-248.0,0.00019068,3]
[426059862,1782132631000,-39.37592877,0.00016817,2]
[426059863,1782132631000,-1000.0,0.0001881,2]
[426059860,1782132631000,-151.0,0.00010835,2]
[426059861,1782132631000,-146.62407123,0.00016817,2]
[426059878,1782132638000,-1443.06268788,0.00019178,2]
[426059901,1782132641000,-596.01302843,0.00019178,2]
[426059902,1782132641000,-539.017,0.00019334,2]
[426059904,1782132641000,-186.0,0.00019817,2]
[426059908,1782132641000,-263.70229977,0.00019999,2]
[426059903,1782132641000,-154.12770383,0.00019794,2]
[426059906,1782132641000,-456.65580007,0.00019999,2]
[426059905,1782132641000,-228.77894113,0.00019999,2]
[426059907,1782132641000,-43.34419993,0.00019999,2]
[426060379,1782132646000,-236.29770023,0.00019999,2]
[426060381,1782132646000,-500.0,0.00019999,2]
[426060383,1782132646000,-500.0,0.00019999,2]
[426060391,1782132646000,-171.0,0.0002,2]
[426060387,1782132646000,-500.0,0.00019999,2]
[426060385,1782132646000,-198.31664552,0.00019999,2]
[426060394,1782132646000,-308.25540767,0.00020137,2]
[426060389,1782132646000,-684.0,0.0002,2]
[426060400,1782132646000,-417.15472785,0.00020466,2]
[426060402,1782132646000,-160.0,0.0002082,2]
[426060404,1782132646000,-684.0,0.00021,2]
[426060393,1782132646000,-158.0,0.0002,2]
[426060406,1782132646000,-171.0,0.00021,2]
[426060408,1782132646000,-158.0,0.00021,2]
[426060410,1782132646000,-1562.21510308,0.00021055,2]
[426060397,1782132646000,-197.98041565,0.00020137,2]
[426060398,1782132646000,-160.0,0.00020466,2]
[426067440,1782132945000,3714.0,0.00022855,120]
[426067447,1782132995000,195.53187726,0.00022855,120]
[426067448,1782133003000,344.8208966,0.0002054,120]
[426067450,1782133014000,341.80166548,0.000178,30]
[426067452,1782133029000,278.16647778,0.00022855,120]
[426067453,1782133037000,188.0,0.0002,120]
[426067454,1782133044000,-580.90124129,0.00010512,2]
[426067456,1782133046000,-306.24138195,0.00010512,2]
[426067455,1782133046000,-306.24,0.00010512,2]
[426067457,1782133047000,-306.36,0.00010512,2]
[426067458,1782133048000,-306.29,0.00010512,2]
[426067459,1782133049000,-346.29526289,0.00010512,2]
[426067461,1782133050000,-306.24,0.00010512,2]
[426067460,1782133050000,-306.29,0.00010512,2]
[426067464,1782133051000,-187.44541979,0.00010512,2]
[426067463,1782133051000,368.54214065,0.0002287,120]
[426067462,1782133051000,155.0,0.00018,30]
[426067466,1782133053000,151.08044372,0.0002287,120]
[426067465,1782133053000,-199.53298916,0.00010407,2]
[426067469,1782133056000,3296.8041308,0.0002287,90]
[426067468,1782133056000,239.86651442,0.0002,120]
[426067467,1782133056000,714.37184885,0.00017,120]
[426067470,1782133058000,200.0,0.0002287,120]
[426067472,1782133058000,385.36355433,0.0002287,120]
[426067473,1782133059000,3000.0,7.6e-05,2]
[426067474,1782133060000,-106.70701084,0.00010407,2]
[426067475,1782133060000,676.96683057,0.0002287,120]
[426067476,1782133061000,-196.05628221,0.00010303,2]
[426067477,1782133062000,-358.4433682,0.00010303,2]
[426067478,1782133062000,178.48840104,0.000178,120]
[426067480,1782133064000,165.36636507,0.0002287,120]
[426067479,1782133064000,301.67567121,0.0002287,120]
[426067481,1782133065000,241.46942426,0.0002287,120]
[426067482,1782133066000,3013.364532,0.0002287,120]
[426067483,1782133068000,441.19564509,0.00022372,120]
[426067484,1782133068000,171.0,0.00012,120]
[426067486,1782133070000,249.0,0.0002,120]
[426067485,1782133070000,229.99294469,0.0002287,120]
[426067487,1782133070000,421.27713889,0.0002287,30]
[426067489,1782133072000,299.34083808,0.0002287,45]
[426067491,1782133076000,-187.44541979,0.000102,2]
[426067492,1782133076000,-98.08561248,0.00010303,2]
[426067490,1782133076000,299.76662313,9e-05,120]
[426067493,1782133077000,293.75025504,0.0002287,120]
[426067521,1782133239000,5000.0,0.00011,13]
[426067525,1782133270000,-162.7551349,0.000105,2]
[426067526,1782133270000,-539.73679863,0.00010395,2]
[426067527,1782133271000,-500.0,0.00010395,2]
[426067528,1782133287000,-3109.71326678,0.00010395,2]
[426067529,1782133304000,-162.62243255,0.000105,2]
[426067532,1782133321000,-430.73381953,0.00010618,2]
[426067533,1782133338000,-1435.43124129,0.00012,2]
[426067534,1782133354000,-151.0,0.00010185,2]
[426067544,1782133574000,-285.21233772,0.00010291,2]
[426067546,1782133575000,-753.43478918,0.00010291,2]
[426067545,1782133575000,-391.16871995,0.00010291,2]
[426067548,1782133582000,-518.39507672,0.00010188,2]
[426067549,1782133584000,-254.97082431,0.00010188,2]
[426067550,1782133585000,-532.22330927,0.00010188,2]
[426067551,1782133586000,-152.0,0.00010188,2]
[426067552,1782133587000,-151.0,0.00010083,2]
[426067553,1782133587000,-564.97383072,0.00010188,2]
[426067558,1782133709000,151.0,9.882e-05,2]
[426067560,1782133755000,5000.0,0.0001,2]
[426067561,1782133764000,2515.57023766,0.0001,2]
[426067562,1782133772000,2305.62212408,0.0001,2]
[426067564,1782133829000,214.0,0.00022532,120]
[426067627,1782133832000,-335.15351793,0.0001176,7]
[426067625,1782133832000,-335.15351793,0.0001134,7]
[426067624,1782133832000,-335.15351793,0.00011025,7]
[426067622,1782133832000,-335.15351793,0.0001071,7]
[426067618,1782133832000,-98.30459214,0.0001071,7]
[426067620,1782133832000,-119.9339667,0.0001071,7]
[426067615,1782133832000,-335.15351793,0.000105,7]
[426067629,1782133832000,-1257.30808272,0.00016527,2]
[426067653,1782133840000,-488.421,0.00016527,2]
[426067654,1782133840000,-560.824,0.00016527,2]
[426067655,1782133840000,-195.651,0.00016527,2]
[426067652,1782133840000,-3433.56012925,0.00016527,2]
[426067721,1782133841000,-500.0,0.00019177,2]
[426067725,1782133841000,-518.20445619,0.00019177,2]
[426067726,1782133841000,-536.48467002,0.00019177,2]
[426067723,1782133841000,-525.18634761,0.00019177,2]
[426067720,1782133841000,-500.0,0.00019177,2]
[426067719,1782133841000,-501.78853598,0.00019177,2]
[426067714,1782133841000,-504.45597933,0.00019177,2]
[426067717,1782133841000,-500.0,0.00019177,2]
[426067715,1782133841000,-511.22196216,0.00019177,2]
[426067727,1782133841000,-523.81382486,0.00019177,2]
[426067713,1782133841000,-499.09341941,0.00019177,2]
[426067722,1782133841000,-509.34891963,0.00019177,2]
[426067736,1782133841000,-500.0,0.00019258,2]
[426067732,1782133841000,-500.0,0.00019256,2]
[426067729,1782133841000,-190.22726229,0.00019179,2]
[426067730,1782133841000,-500.0,0.00019256,2]
[426067728,1782133841000,-154.945,0.00019179,2]
[426067731,1782133841000,-500.0,0.00019256,2]
[426067734,1782133841000,-500.0,0.00019256,2]
[426067733,1782133841000,-500.0,0.00019256,2]
[426067735,1782133841000,-500.0,0.00019258,2]
[426067739,1782133841000,-500.0,0.00019258,2]
[426067737,1782133841000,-500.0,0.00019258,2]
[426067718,1782133841000,-500.0,0.00019177,2]
[426067738,1782133841000,-500.0,0.00019258,2]
[426067741,1782133841000,-500.0,0.00019258,2]
[426067742,1782133841000,-500.0,0.00019258,2]
[426067724,1782133841000,-508.14536391,0.00019177,2]
[426067708,1782133841000,-504.88240855,0.00019177,2]
[426067657,1782133841000,-1419.0,0.00016817,2]
[426067704,1782133841000,-506.53956146,0.00019177,2]
[426067656,1782133841000,-500.0,0.00016816,2]
[426067658,1782133841000,-958.0,0.00016817,2]
[426067659,1782133841000,-1842.0,0.00016817,2]
[426067661,1782133841000,-155.54813861,0.00017375,2]
[426067672,1782133841000,-300.36141649,0.00019,2]
[426067660,1782133841000,-182.574101,0.00017375,2]
[426067662,1782133841000,-189.6006997,0.00017797,2]
[426067664,1782133841000,-197.43242607,0.00018079,2]
[426067663,1782133841000,-1000.0,0.00017971,2]
[426067668,1782133841000,-1488.14377655,0.00018968,2]
[426067665,1782133841000,-288.3137906,0.00018179,2]
[426067667,1782133841000,-150.43071124,0.00018487,2]
[426067670,1782133841000,-316.10086766,0.00018968,2]
[426067706,1782133841000,-507.38263301,0.00019177,2]
[426067674,1782133841000,-500.0,0.00019064,2]
[426067678,1782133841000,-250.0,0.00019068,3]
[426067680,1782133841000,-511.69907333,0.00019084,2]
[426067682,1782133841000,-172.10419606,0.00019168,2]
[426067684,1782133841000,-301.3557869,0.00019177,2]
[426067690,1782133841000,-509.0996687,0.00019177,2]
[426067686,1782133841000,-500.0,0.00019177,2]
[426067688,1782133841000,-224.5042824,0.00019177,2]
[426067696,1782133841000,-500.0,0.00019177,2]
[426067698,1782133841000,-500.0,0.00019177,2]
[426067694,1782133841000,-508.14617062,0.00019177,2]
[426067692,1782133841000,-500.0,0.00019177,2]
[426067700,1782133841000,-509.97197044,0.00019177,2]
[426067702,1782133841000,-517.21024592,0.00019177,2]
[426067676,1782133841000,-500.0,0.00019064,2]
[426067740,1782133841000,-500.0,0.00019258,2]
[426067758,1782133841000,-503.13760683,0.00019266,2]
[426067743,1782133841000,-500.0,0.00019258,2]
[426067781,1782133841000,-500.0,0.00019266,2]